Cogmind - Beta 15 @@@ ROGUE MODE // 2025.09.09 @ 19:56:18 Player: Raisen Result: Self-destructed Performance ------------- Evolutions (1) 500 Regions Visited (3) 600 Robots Destroyed (11) 55 Value Destroyed (255) 255 Prototype IDs (1) 20 Alien Tech Used (0) 0 Bonus (0) 0 TOTAL SCORE: 1430 Bonus ------- None Cogmind --------- Core Integrity 66/400 Matter 300/300 Energy 100/100 System Corruption 0% Temperature Cool (0) Movement Core (100) Ox1 Location -9/Materials Parts ------- > --- POWER (1) -------- (None) > --- PROPULSION (4) --- (None) > --- UTILITY (2) ------ Signal Interpreter > --- WEAPON (2) ------- Great Maul > --- INVENTORY (5) ---- Faulty Experimental Sensor Array Peak State ------------ > --- POWER ------------ Light Ion Engine > --- PROPULSION ------- Flight Unit > --- UTILITY ---------- Experimental Sensor Array Signal Interpreter > --- WEAPON ----------- Light Assault Rifle > --- INVENTORY -------- Ion Engine Compact Wheel Compact Wheel Medium Matter Pod [Rating: 13] Favorites ----------- Power Light Ion Engine Engine Light Ion Engine Propulsion Compact Wheel Wheel Compact Wheel Flight Unit Flight Unit Utility Signal Interpreter Device Sensor Array Storage Small Storage Unit Processor Signal Interpreter Weapon Light Assault Rifle Energy Gun EM Pulse Gun Ballistic Gun Light Assault Rifle Impact Weapon Great Maul Build | -11 -10 -10 -9 ------- Run | Yrd Mat Min Mat Slots Evolved 2 | . . . 2 Power . | . . . . Propulsion 2 | . . . 2 Utility . | . . . . Weapon . | . . . . Parts Attached 16 | 7 1 4 4 Power 2 | 1 . 1 . Engine 2 | 1 . 1 . Core . | . . . . Reactor . | . . . . Propulsion 3 | 2 . 1 . Treads . | . . . . Leg . | . . . . Wheel 2 | 2 . . . Hover . | . . . . Flight 1 | . . 1 . Utility 4 | 1 1 1 1 Device 2 | . . 1 1 Storage 1 | 1 . . . Processor 1 | . 1 . . Hackware . | . . . . Protection . | . . . . Artifact . | . . . . Weapon 7 | 3 . 1 3 Energy Gun 2 | 2 . . . Energy Cannon . | . . . . Ballistic Gun 2 | 1 . 1 . Ballistic Cannon . | . . . . Launcher . | . . . . Special Weapon . | . . . . Impact Weapon 3 | . . . 3 Slashing Weapon . | . . . . Piercing Weapon . | . . . . Special Melee Weapon . | . . . . Unidentified Prototypes 1 | . . 1 . Parts Lost 6 | . . . 6 Power 1 | . . . 1 Propulsion 2 | . . . 2 Utility 1 | . . . 1 Weapon 2 | . . . 2 Highest Loss Streak 4 | . . . 4 To Critical Strikes . | . . . . Average Backups 2 | . 1 3 3 Power . | . . 1 . Propulsion . | . . 1 . Utility 1 | . . 1 1 Weapon . | . . . 1 Tool/Special . | . . . . Unused Backups 2 | . . . 2 Power 1 | . . . 1 Propulsion . | . . . . Utility 1 | . . . 1 Weapon . | . . . . Tool/Special . | . . . . Average Slot Usage (%) 60 | . 88 58 45 Engine 10 | . 14 13 4 Wheel 8 | . 28 1 4 Flight 7 | . . 13 4 Device 2 | . . . 7 Storage 3 | . 14 . . Processor 10 | . 2 14 11 Energy Gun 3 | . 14 . . Ballistic Gun 9 | . 14 13 . Impact Weapon 3 | . . . 11 Peak Build Rating 13 | 6 7 13 11 Average Rating 5 | 4 6 4 7 On Entrance 4 | . 6 7 5 Naked Turns . | . . . . Heaviest Build 14 | 14 14 14 12 Greatest Support 32 | 32 32 32 16 Greatest Overweight (x) 2 | . . . 2 Average Overweight (x) . | . . . . Largest Inventory Capacity 8 | 8 8 8 5 Average Capacity 5 | 6 8 5 5 Most Carried 5 | . 2 5 5 Average Carried 2 | . 1 4 3 Final Capacity 8 | 8 8 5 5 Final Carried 5 | . 2 5 1 Class Distribution -------------------- 100% | Mutant Dominant Class ---------------- Mutant | -10/Materials Mutant | -10/Mines Mutant | -9/Materials Resources | -11 -10 -10 -9 ----------- Run | Yrd Mat Min Mat Matter Collected 425 | 270 30 48 77 Remotely . | . . . . Salvage Created 365 | 85 30 32 218 Parts 15 | 1 3 2 9 Haulers Intercepted . | . . . . Recyclers Shooed . | . . . . Parts Field Recycled . | . . . . Retrieved Matter . | . . . . Parts Self-Destructed . | . . . . Prevented . | . . . . Kills | -11 -10 -10 -9 ------- Run | Yrd Mat Min Mat Combat Hostiles Destroyed 7 | . 1 2 4 Melee 1 | . . . 1 Guns 3 | . 1 2 . Classes Destroyed 5 | 1 1 1 2 Builder 3 | . . . 3 Recycler 1 | 1 . . . Swarmer 2 | . . 2 . Grunt 1 | . 1 . . Sentry 4 | . . . 4 Best Kill Streak 3 | 1 1 2 3 Combat Bots Only 2 | . 1 2 2 Max Kills in Single Turn 1 | 1 1 1 1 Gunslinging . | . . . . Exploded . | . . . . Melee 1 | . . . 1 Uniques/NPCs Destroyed . | . . . . Combat | -11 -10 -10 -9 -------- Run | Yrd Mat Min Mat Hostile Shots Fired 75 | . 4 6 65 Missed 18 | . . 3 15 Hits 57 | . 4 3 50 Projectile 57 | . 4 3 50 Critical Strikes 1 | . . . 1 Damage Taken 830 | . 46 30 754 Core 356 | . 12 10 334 Absorbed by Shields . | . . . . Core Remaining (%) 95 | 100 . 91 . Volleys Fired 11 | 4 4 3 . Largest 2 | 2 2 2 . Hottest 80 | 80 60 60 . Shots Fired 22 | 8 8 6 . Gun 22 | 8 8 6 . Cannon . | . . . . Launcher . | . . . . Special . | . . . . Kinetic 7 | . 4 3 . Thermal . | . . . . Explosive . | . . . . Electromagnetic 15 | 8 4 3 . Robot Hit Streak 3 | 2 3 2 . Robot Miss Streak 3 | 3 2 3 . Penetration Max . | . . . . Secondary Targets . | . . . . Shots Hit Robots 29 | 4 3 2 20 Core Hits 7 | 1 2 2 2 Critical Kills 1 | . . . 1 Critical Parts Destroyed 3 | . . . 3 Critical Strikes 4 | . . . 4 Smash 4 | . . . 4 Melee Attacks 27 | . . . 27 Impact 27 | . . . 27 Slashing . | . . . . Piercing . | . . . . Sneak Attacks 3 | . . . 3 Combat Hostiles . | . . . . Follow-up Attacks 1 | . . . 1 Damage Inflicted 1093 | 58 91 46 898 Guns 144 | 58 40 46 . Cannons . | . . . . Explosions 51 | . 51 . . Melee 898 | . . . 898 Ramming . | . . . . Kinetic 37 | . 13 24 . Thermal 51 | . 51 . . Explosive . | . . . . Electromagnetic 107 | 58 27 22 . Impact 898 | . . . 898 Slashing . | . . . . Piercing . | . . . . Highest Corruption . | . . . . Average Corruption . | . . . . Corruption Purged . | . . . . Corruption Blocked . | . . . . Overload Shots . | . . . . Overflow Damage 253 | . . . 253 Projectiles . | . . . . Explosions . | . . . . Melee 253 | . . . 253 Knockbacks . | . . . . Impact . | . . . . Kinetic . | . . . . Secondary . | . . . . Self-Inflicted Damage . | . . . . Shots . | . . . . Rammed . | . . . . Targets Rammed . | . . . . Kicked . | . . . . Crushed . | . . . . Highest Temperature 401 | 72 24 401 . Average Temperature 116 | 37 14 207 . Received Heat Transfer 276 | . 24 . 252 Effects 1 | . . 1 . Interference 1 | . . 1 . Siege Activations . | . . . . Martial Activations . | . . . . Shielding Activations . | . . . . Robots Disrupted . | . . . . Combat Hostiles . | . . . . Robots Corrupted 4 | . . . 4 Combat Hostiles 3 | . . . 3 Parts Fried 9 | 1 . . 8 Impact Corruptions 11 | . . . 11 Robots Melted . | . . . . Combat Hostiles . | . . . . Parts Melted . | . . . . Heat Transferred 100 | . 100 . . Parts Sabotaged . | . . . . Parts Stolen . | . . . . Parts Stripped . | . . . . Power Chain Reactions 1 | . 1 . . Alert | -11 -10 -10 -9 ------- Run | Yrd Mat Min Mat Maximum Alert Level . | . . . . Low Security (%) 100 | 100 100 100 100 Level 1 . | . . . . Level 2 . | . . . . Level 3 . | . . . . Level 4 . | . . . . Level 5 . | . . . . High Security . | . . . . Max Security . | . . . . Peak Influence 65 | . 20 40 65 Initial . | . . . . Average 10 | . 5 5 25 Influence Increases 262 | 5 44 40 173 Destroy 0b10 Robot/C 140 | . 20 40 80 Destroy 0b10 Robot/NC 20 | 5 . . 15 Destroy Leader 40 | . . . 40 Successful Hack 23 | . 18 . 5 Destroy Structure 9 | . 6 . 3 Partial Spotted 15 | . . . 15 Lose Combat Pursuer 15 | . . . 15 Influence Decreases 202 | 5 44 40 113 Time Decay 147 | 5 44 40 58 Lost Part 55 | . . . 55 Squads Dispatched . | . . . . Investigation . | . . . . Extermination . | . . . . Reinforcement . | . . . . Assault . | . . . . Garrison . | . . . . Intercept . | . . . . Searches Triggered . | . . . . Construction Impeded . | . . . . Haulers Reinforced . | . . . . Active Scanning Responses . | . . . . Cargo Convoy Interrupts . | . . . . Stealth | -11 -10 -10 -9 --------- Run | Yrd Mat Min Mat Distress Signals 1 | . . . 1 Communications Jammed . | . . . . Distress Signals . | . . . . Times Spotted 11 | . 1 2 8 Peak Tracking Total 5 | . 1 2 5 Tactical Retreats 1 | . . . 1 Traps | -11 -10 -10 -9 ------- Run | Yrd Mat Min Mat Traps Triggered . | . . . . Indirectly . | . . . . Trap Hack Attempts . | . . . . Triggered . | . . . . Disarmed . | . . . . Reprogrammed . | . . . . Reused . | . . . . Traps Extracted . | . . . . Installed . | . . . . Triggered . | . . . . Machines | -11 -10 -10 -9 ---------- Run | Yrd Mat Min Mat Machines Disabled . | . . . . Max in Single Turn . | . . . . Machines Repaired . | . . . . Machines Dismantled . | . . . . Machines Sabotaged . | . . . . Overloaded Fab Kills . | . . . . Hacking | -11 -10 -10 -9 --------- Run | Yrd Mat Min Mat Machines Accessed 4 | . 2 . 2 Terminals 4 | . 2 . 2 Fabricators . | . . . . Repair Stations . | . . . . Recycling Units . | . . . . Scanalyzers . | . . . . Garrison Access . | . . . . Total Hacks 5 | . 3 . 2 Successful 4 | . 2 . 2 Failed 1 | . 1 . . Catastrophic . | . . . . Database Lockouts . | . . . . Manual 4 | . 3 . 1 Terminals 5 | . 3 . 2 Fabricators . | . . . . Repair Stations . | . . . . Recycling Units . | . . . . Scanalyzers . | . . . . Garrison Access . | . . . . Terminal Hacks 1 | . . . 1 Alert Level 1 | . . . 1 Fabricator Hacks . | . . . . Repair Station Hacks . | . . . . Recycling Unit Hacks . | . . . . Scanalyzer . | . . . . Garrison Access Hacks . | . . . . Unauthorized Hacks 3 | . 2 . 1 Terminals 3 | . 2 . 1 Botnet 3 | . 2 . 1 Fabricators . | . . . . Repair Stations . | . . . . Recycling Units . | . . . . Scanalyzers . | . . . . Garrison Access . | . . . . Data Cores Recovered . | . . . . Used . | . . . . Hacking Detections 3 | . 2 . 1 Full Trace Events . | . . . . Feedback Events . | . . . . Feedback Blocked . | . . . . Robot Schematics Acquired . | . . . . Robots Built . | . . . . Authchips . | . . . . Time . | . . . . Total Robot Build Rating . | . . . . Part Schematics Acquired . | . . . . Parts Built . | . . . . Authchips . | . . . . Time . | . . . . Total Part Build Rating . | . . . . Parts Repaired . | . . . . Time . | . . . . Parts Recycled . | . . . . Recycled Matter . | . . . . Retrieved Matter . | . . . . Retrieved Components . | . . . . Parts Scanalyzed . | . . . . Part Schematics Acquired . | . . . . Parts Damaged . | . . . . Bothacking | -11 -10 -10 -9 ------------ Run | Yrd Mat Min Mat Used RIF Installer . | . . . . Robots Hacked . | . . . . Non-combat . | . . . . Combat . | . . . . Robot Hacks Applied . | . . . . Relay Couplers Released . | . . . . Fabnet Peak Effective % . | . . . . Robots Rewired . | . . . . Allies Hacked . | . . . . Hacks Repelled . | . . . . Allies | -11 -10 -10 -9 -------- Run | Yrd Mat Min Mat Total Allies . | . . . . Largest Group . | . . . . Highest-Rated Group . | . . . . Highest-Rated Ally . | . . . . Total Orders . | . . . . Ally Attacks . | . . . . Total Damage . | . . . . Kills . | . . . . Allies Corrupted . | . . . . Allies Melted . | . . . . Intel | -11 -10 -10 -9 ------- Run | Yrd Mat Min Mat Active Infowar (turns) 166 | . . . 166 Sensors 166 | . . . 166 Robot Analysis Total . | . . . . Derelict Logs Recovered 1 | . . 1 . Drone Launches . | . . . . Drone Recoveries . | . . . . Exploration | -11 -10 -10 -9 ------------- Run | Yrd Mat Min Mat Turns Passed 741 | 63 139 323 216 Spaces Moved 934 | 41 124 541 228 Core 10 | 1 . 1 8 Treads . | . . . . Legs . | . . . . Wheels 210 | 40 124 3 43 Hover . | . . . . Flight 714 | . . 537 177 Fastest Speed 40 | 50 100 40 40 Average Speed 54 | 98 100 40 53 Slowest Speed 150 | 100 100 100 150 Overloaded Moves . | . . . . Propulsion Burnouts . | . . . . Robots Hopped 2 | . . 2 . Potential Cave-ins . | . . . . Cave-ins Triggered . | . . . . Exploration Rate (%) 35 | 4 32 83 21 Regions Visited 3 Branch Regions 1 Pre-discovered Areas 1 | . . 1 . Known Exits Taken 2 | . 1 1 . Unknown Exits Taken 1 | 1 . . . Scrap Searched . | . . . . Spaces Dug 3 | . . . 3 Terrain Destroyed 9 | . 6 . 3 Melee 3 | . . . 3 Projectile . | . . . . AOE 6 | . 6 . . Terrain Rammed . | . . . . Walls Destroyed . | . . . . Machines Disabled . | . . . . Actions | -11 -10 -10 -9 --------- Run | Yrd Mat Min Mat Total 1090 | 52 130 638 270 Wait 83 | . . 83 . Move 927 | 40 123 536 228 Hop 2 | . . 2 . Pick Up 9 | . 2 3 4 Fast Attach 14 | 7 1 4 2 Attach 4 | . . . 4 Detach . | . . . . Swap . | . . . . Drop 14 | 1 . 7 6 Fire 11 | 4 4 3 . Melee 26 | . . . 26 Ram . | . . . . Kick . | . . . . Crush . | . . . . Escape Stasis . | . . . . Rewire . | . . . . Trap . | . . . . Miscellaneous . | . . . . Route ------- -11/Scrapyard -10/Materials -10/Mines -9/Materials (discovered 1 exit: *Min) History --------- Turn | Location | Event 15 | -11/Scrapyard | Discovered new exit (range 16) 64 | -11/Scrapyard | Entered Materials 118 | -10/Materials | Discovered new exit (range 14) 202 | -10/Materials | Identified exit to Mines 203 | -10/Materials | Entered Mines 210 | -10/Mines | Met a Derelict bent on vengeance 306 | -10/Mines | Build established: Mutant 373 | -10/Mines | Found a hidden stash of uninstalled traps 378 | -10/Mines | Discovered new exit (range 7) 416 | -10/Mines | Learned location of Zion (-6) 447 | -10/Mines | Found a damaged Exp. Sensor Array with a note attached 448 | -10/Mines | Found Prototype Device 448 | -10/Mines | Identified Exp. Sensor Array 526 | -10/Mines | Identified exit to Materials 526 | -10/Mines | Entered Materials 526 | -9/Materials | Evolved 2 slots: Propulsion x2 552 | -9/Materials | Discovered new exit (range 6) 553 | -9/Materials | Identified exit to Mines 709 | -9/Materials | Core integrity fell below 50% 727 | -9/Materials | Core integrity fell below 20% 742 | -9/Materials | Self-destructed Last Messages --------------- 00728_ Y-45 Defender system corrupted by crushing effect. 00729_ Y-45 Defender system terminally corrupted. 00729_ Heat Sink fried. 00729_ K-01 Serf collects debris. 00732_ U-05 Engineer builds a Wall. 00733_ Y-45 Defender suffers critical hit (Smash). 00733_ Destroyed Lgt. Treads. 00733_ Y-45 Defender system corrupted by crushing effect. 00733_ M-13 Machinist destroyed. 00735_ K-01 Serf collects debris. 00736_ Y-45 Defender suffers critical hit (Smash). 00736_ Y-45 Defender destroyed. 00738_ K-01 Serf collects debris. 00739_ Acquired 10 matter. 00741_ K-01 Serf collects debris. Map ----- +----------------------------------------------------+ | ???????????????????????????????????????######=![ | | ????????????????????????????????######## ## / | | ????????????????????????????????# # ####### | | ????????????????????????????????#!! # #?????# | | ?????????????????????????########! * + #?????# | | ?????????????????????????# # # ####### | | ?????????????????????????# # "Y" # | | ?????????????????????????# # """ # ####### | | ?????????????????????????# ######## # | | ???????????????########### ????????# # | | ???????????????# # ????????# # | | ???????????????# """ """ #+##+########## # **! | | ???????????????# "R """ # # *!! | | ???????????????# """ """ + # *!! | | ???????????????# # ####### | | ???????????????# ! # #######+#######?????? | | ???????????????# # #?# #?????????? | | ???????????????# # #?#""" #?????????? | | ???????????????# ######### #?#""" #?????????? | | ??????????????############ #?#""" #?????????? | | ??????????????# ## #?# #?????????? | | ??????????????# ## ###""" #?????????? | | ??????????????# # ##""" #?????????? | | ??????????????# # ##""" #?????????? | | ??????????????# """ """ /u % ## ^ #?????????? | | ??????????????# """ " %#@! ## #?????????? | | ??????????????# """ """ #=[k ## #?????????? | | ??????????????# *! ##% ###########?????????? | | ??????????????############* #???????????????????? | | ??????????????????????#### #???????????????????? | | ?????????????????????????# #???????????????????? | | ????????????????????????? ???????????????????? | | ????????????????????????? ??????????????????? | | ????????????????????????? ?????????????????? | | ????????????????????????? #####????????????????? | | ????????????????????????? #????????????????????? | | ????????????????????????? #????????????????????? | | ???????????????????????? #????????????????????? | | ???????????????????????? #????????????????????? | | ????????????????????????### #????????????????????? | | ??????????????????????????? ?????????????????????? | | ??????????????????????????? ?????????????????????? | | ??????????????????????????? ?????????????????????? | | ?????????????????????????????????????????????????? | | ?????????????????????????????????????????????????? | | ?????????????????????????????????????????????????? | | ?????????????????????????????????????????????????? | | ?????????????????????????????????????????????????? | | ?????????????????????????????????????????????????? | | ?????????????????????????????????????????????????? | +----------------------------------------------------+ Best States ------------- Heat Dissipation 28 Energy Generation 10 Energy Capacity 250 Matter Stores 300 Matter Capacity 300 Sight Range 16 Robot Scan Range 14 Terrain Scan Density 10 Evasion (%) 62 Item Schematics ----------------- None Robot Schematics ------------------ None Fabricated ------------ Nothing Repaired ---------- Nothing Alien Tech Used ----------------- None Achievements -------------- None Challenges ------------ None Game ------ Seed HugeControlPropulsion Manual? 0 Play Time 00:11:01 Cumulative 14.8 hours Start 2025.09.09 @ 19:47:55 End 2025.09.09 @ 19:56:18 Sessions 1 Manual Loads 0 Difficulty Rogue Special Mode None Game No. 27 Rogue 27 Adventurer 0 Explorer 0 Win Type - Total 0 Types 0/0/0/0/0/0/0/0/0/0 Lore% 10 Gallery% 18 Achievement% 20 Wizard Run 0 Options --------- Layout 1 ASCII 0 Keyboard 0 Movement Mouse Keybinds 0 Fullscreen 2 Font 24/Smallcaps Map View 50x35 Zoom Use 0% Tactical HUD 1 Map Filters NONE Filters NONE Steam 1 RUN: 53bce728-4efd-4feb-a2a1-db50b57a26d4